[Event "Early-Titled-Tuesday-Blitz-September-12-2023"]
[Site "Chess.com"]
[Date "2023.09.12"]
[Round "1"]
[White "yuki_chess123"]
[Black "Romkachess"]
[Result "1-0"]
[WhiteElo "2178"]
[BlackElo "2539"]
[TimeControl "180+1"]
[EndTime "8:07:31 PDT"]
[Termination "yuki_chess123 won by resignation"]

1. e4 {[%clk 0:02:56.5]} 1... c5 {[%clk 0:02:58.3]} 2. Nf3 {[%clk 0:02:54.5]}
2... d6 {[%clk 0:02:58.1]} 3. Bb5+ {[%clk 0:02:50.9]} 3... Bd7 {[%clk 0:02:58]}
4. c4 {[%clk 0:02:49.4]} 4... a6 {[%clk 0:02:54.5]} 5. Bxd7+ {[%clk 0:02:48.9]}
5... Qxd7 {[%clk 0:02:54.7]} 6. d4 {[%clk 0:02:48.5]} 6... cxd4 {[%clk
0:02:54.2]} 7. Nxd4 {[%clk 0:02:47.2]} 7... Nf6 {[%clk 0:02:53]} 8. Nc3 {[%clk
0:02:47.1]} 8... Nc6 {[%clk 0:02:50.4]} 9. Be3 {[%clk 0:02:45.8]} 9... e6 {[%clk
0:02:28]} 10. f3 {[%clk 0:02:44.1]} 10... Be7 {[%clk 0:02:06.8]} 11. O-O {[%clk
0:02:41.8]} 11... O-O {[%clk 0:02:01.4]} 12. Rc1 {[%clk 0:02:41.2]} 12... Rfd8
{[%clk 0:01:43.9]} 13. Qe2 {[%clk 0:02:39.7]} 13... Nxd4 {[%clk 0:01:33.9]} 14.
Bxd4 {[%clk 0:02:39]} 14... Rac8 {[%clk 0:01:34.8]} 15. Rfd1 {[%clk 0:02:34.5]}
15... Qc6 {[%clk 0:01:24.9]} 16. b3 {[%clk 0:02:32.1]} 16... Nd7 {[%clk
0:01:15.5]} 17. Nd5 {[%clk 0:02:09.5]} 17... Bf8 {[%clk 0:01:03.8]} 18. Ne3
{[%clk 0:01:43.6]} 18... Nc5 {[%clk 0:00:55.9]} 19. Qb2 {[%clk 0:01:40.7]} 19...
h5 {[%clk 0:00:47.7]} 20. b4 {[%clk 0:01:37.8]} 20... Nd7 {[%clk 0:00:45.1]} 21.
Qb3 {[%clk 0:01:28.1]} 21... b5 {[%clk 0:00:36.6]} 22. Rc2 {[%clk 0:01:14.3]}
22... bxc4 {[%clk 0:00:32.8]} 23. Nxc4 {[%clk 0:01:09.5]} 23... Qb5 {[%clk
0:00:17.9]} 24. a4 {[%clk 0:01:08.1]} 24... Qb8 {[%clk 0:00:18.5]} 25. Na5
{[%clk 0:01:01.3]} 25... Rxc2 {[%clk 0:00:16.9]} 26. Qxc2 {[%clk 0:01:01.1]}
26... Qa8 {[%clk 0:00:17.8]} 27. Nc6 {[%clk 0:00:58]} 27... Rc8 {[%clk
0:00:16.8]} 28. b5 {[%clk 0:00:58.6]} 28... axb5 {[%clk 0:00:16.6]} 29. axb5
{[%clk 0:00:59.3]} 29... Qb7 {[%clk 0:00:16.2]} 30. Rc1 {[%clk 0:00:57.1]} 30...
Ra8 {[%clk 0:00:16.6]} 31. Qb3 {[%clk 0:00:30]} 31... Nc5 {[%clk 0:00:16.4]} 32.
Bxc5 {[%clk 0:00:28.1]} 32... dxc5 {[%clk 0:00:17.3]} 33. Qc4 {[%clk 0:00:27.1]}
33... Qb6 {[%clk 0:00:16.4]} 34. g3 {[%clk 0:00:19.7]} 34... Rc8 {[%clk
0:00:16.6]} 35. Kg2 {[%clk 0:00:17.8]} 35... Rc7 {[%clk 0:00:16.9]} 36. Rc2
{[%clk 0:00:17.5]} 36... Rd7 {[%clk 0:00:17.2]} 37. Ra2 {[%clk 0:00:15.2]} 37...
g6 {[%clk 0:00:15]} 38. Ra8 {[%clk 0:00:14.2]} 38... Rd2+ {[%clk 0:00:11.9]} 39.
Kh3 {[%clk 0:00:13.7]} 39... Qb7 {[%clk 0:00:10.1]} 40. Rxf8+ {[%clk 0:00:10.4]}
40... Kxf8 {[%clk 0:00:09.3]} 41. Qc3 {[%clk 0:00:11.1]} 41... Rd4 {[%clk
0:00:06.8]} 42. Qxc5+ {[%clk 0:00:10.9]} 42... Kg8 {[%clk 0:00:04.8]} 43. Nxd4
{[%clk 0:00:10.8]} 1-0

[Event "Early-Titled-Tuesday-Blitz-September-12-2023"]
[Site "Chess.com"]
[Date "2023.09.12"]
[Round "1"]
[White "tdf98pantani"]
[Black "ajedrezhoy"]
[Result "1-0"]
[WhiteElo "2737"]
[BlackElo "2417"]
[TimeControl "180+1"]
[EndTime "8:07:32 PDT"]
[Termination "tdf98pantani won on time"]

1. e4 {[%clk 0:03:00.9]} 1... Nf6 {[%clk 0:02:59.2]} 2. e5 {[%clk 0:03:00.5]}
2... Nd5 {[%clk 0:02:58.8]} 3. d4 {[%clk 0:02:59.6]} 3... d6 {[%clk 0:02:58.1]}
4. c4 {[%clk 0:02:59.7]} 4... Nb6 {[%clk 0:02:56.6]} 5. exd6 {[%clk 0:02:59.3]}
5... cxd6 {[%clk 0:02:56.2]} 6. Nc3 {[%clk 0:02:58.9]} 6... g6 {[%clk
0:02:56.4]} 7. Bg5 {[%clk 0:02:58.6]} 7... h6 {[%clk 0:02:45]} 8. Be3 {[%clk
0:02:57.6]} 8... Bg7 {[%clk 0:02:44.6]} 9. Qd2 {[%clk 0:02:56.1]} 9... Nc6
{[%clk 0:02:28.1]} 10. d5 {[%clk 0:02:54.2]} 10... Ne5 {[%clk 0:02:25.2]} 11. b3
{[%clk 0:02:54.4]} 11... Ng4 {[%clk 0:02:03.4]} 12. Bd4 {[%clk 0:02:54]} 12...
Nf6 {[%clk 0:01:51.2]} 13. Be2 {[%clk 0:02:50.5]} 13... O-O {[%clk 0:01:47.9]}
14. Nf3 {[%clk 0:02:49.7]} 14... Bf5 {[%clk 0:01:45]} 15. O-O {[%clk 0:02:48.8]}
15... Nbd7 {[%clk 0:01:38.1]} 16. Rfe1 {[%clk 0:02:47.9]} 16... a6 {[%clk
0:01:34.4]} 17. Bf1 {[%clk 0:02:43.8]} 17... g5 {[%clk 0:01:30.3]} 18. h4 {[%clk
0:02:31.3]} 18... g4 {[%clk 0:01:28.1]} 19. Nh2 {[%clk 0:02:31.1]} 19... Bg6
{[%clk 0:01:10.5]} 20. Be2 {[%clk 0:02:28.1]} 20... h5 {[%clk 0:01:09]} 21. Nf1
{[%clk 0:02:28.2]} 21... Re8 {[%clk 0:01:05.9]} 22. Ng3 {[%clk 0:02:25]} 22...
e5 {[%clk 0:01:02.6]} 23. dxe6 {[%clk 0:02:24.4]} 23... fxe6 {[%clk 0:01:02.2]}
24. Be3 {[%clk 0:02:20.6]} 24... Rc8 {[%clk 0:00:48.3]} 25. Qxd6 {[%clk
0:02:03.5]} 25... b5 {[%clk 0:00:36.6]} 26. Qxa6 {[%clk 0:02:00.7]} 26... bxc4
{[%clk 0:00:35.6]} 27. Bxc4 {[%clk 0:02:00.2]} 27... Bf7 {[%clk 0:00:35.4]} 28.
Rad1 {[%clk 0:01:58.9]} 28... Qc7 {[%clk 0:00:32.1]} 29. Nb5 {[%clk 0:01:57.9]}
29... Qc6 {[%clk 0:00:26.4]} 30. Qxc6 {[%clk 0:01:56.4]} 30... Rxc6 {[%clk
0:00:25.9]} 31. Nd6 {[%clk 0:01:57.1]} 31... Re7 {[%clk 0:00:23.2]} 32. Bg5
{[%clk 0:01:50.8]} 32... Kf8 {[%clk 0:00:18.5]} 33. a4 {[%clk 0:01:44.7]} 33...
Nb6 {[%clk 0:00:16.5]} 34. Bb5 {[%clk 0:01:39.2]} 34... Rc3 {[%clk 0:00:15.1]}
35. a5 {[%clk 0:01:31.7]} 35... Nbd5 {[%clk 0:00:13.7]} 36. Bc4 {[%clk
0:01:28.2]} 36... Bg6 {[%clk 0:00:09.8]} 37. a6 {[%clk 0:01:27.2]} 37... Rc2
{[%clk 0:00:09.3]} 38. Nge4 {[%clk 0:01:17.1]} 38... Ra2 {[%clk 0:00:08]} 39.
Bxd5 {[%clk 0:01:12.1]} 39... Nxd5 {[%clk 0:00:07.4]} 40. Bxe7+ {[%clk
0:01:11.3]} 40... Kxe7 {[%clk 0:00:08]} 41. Rxd5 {[%clk 0:01:07.1]} 41... exd5
{[%clk 0:00:07]} 42. Nc3+ {[%clk 0:01:06.8]} 42... Kxd6 {[%clk 0:00:07.5]} 43.
Nxa2 {[%clk 0:01:07.2]} 43... Bd4 {[%clk 0:00:07.3]} 44. Rd1 {[%clk 0:01:03.5]}
44... Ba7 {[%clk 0:00:06.9]} 45. Nb4 {[%clk 0:01:04]} 45... Bf7 {[%clk
0:00:06.5]} 46. Rc1 {[%clk 0:01:02.7]} 46... d4 {[%clk 0:00:05.9]} 47. Nc6
{[%clk 0:01:02.1]} 47... Bb6 {[%clk 0:00:05.6]} 48. a7 {[%clk 0:00:57.1]} 48...
Bxa7 {[%clk 0:00:06.3]} 49. Nxa7 {[%clk 0:00:57.3]} 49... Bxb3 {[%clk
0:00:06.4]} 50. Nb5+ {[%clk 0:00:56.9]} 50... Kd5 {[%clk 0:00:06.6]} 51. Nxd4
{[%clk 0:00:52.3]} 51... Kxd4 {[%clk 0:00:06.5]} 52. Kh2 {[%clk 0:00:52.7]}
52... Kd3 {[%clk 0:00:05.8]} 53. Kg3 {[%clk 0:00:52.8]} 53... Bf7 {[%clk
0:00:05.1]} 54. Rc5 {[%clk 0:00:52.7]} 54... Kd4 {[%clk 0:00:04.2]} 55. Rf5
{[%clk 0:00:52.4]} 55... Be8 {[%clk 0:00:04.1]} 56. Kf4 {[%clk 0:00:52.7]} 56...
Kd3 {[%clk 0:00:02.2]} 57. Re5 {[%clk 0:00:52]} 57... Bf7 {[%clk 0:00:01.4]} 58.
Re7 {[%clk 0:00:51.8]} 1-0

[Event "Early-Titled-Tuesday-Blitz-September-12-2023"]
[Site "Chess.com"]
[Date "2023.09.12"]
[Round "1"]
[White "jk13"]
[Black "supereagles1201"]
[Result "1-0"]
[WhiteElo "2705"]
[BlackElo "2396"]
[TimeControl "180+1"]
[EndTime "8:07:34 PDT"]
[Termination "jk13 won on time"]

1. e4 {[%clk 0:03:00.9]} 1... c6 {[%clk 0:02:59.7]} 2. Nc3 {[%clk 0:03:00.5]}
2... d5 {[%clk 0:03:00.2]} 3. Nf3 {[%clk 0:03:00.9]} 3... dxe4 {[%clk
0:03:00.7]} 4. Nxe4 {[%clk 0:03:01]} 4... Nf6 {[%clk 0:03:01.3]} 5. Nxf6+ {[%clk
0:03:00.5]} 5... exf6 {[%clk 0:03:02.2]} 6. d4 {[%clk 0:02:58.6]} 6... Bd6
{[%clk 0:03:01.9]} 7. Bd3 {[%clk 0:02:58.2]} 7... O-O {[%clk 0:03:01.2]} 8. O-O
{[%clk 0:02:58.7]} 8... Re8 {[%clk 0:02:59.7]} 9. h3 {[%clk 0:02:59.1]} 9... Nd7
{[%clk 0:02:59]} 10. c4 {[%clk 0:02:59.3]} 10... Nf8 {[%clk 0:02:58.3]} 11. b3
{[%clk 0:02:56.4]} 11... Be6 {[%clk 0:02:58]} 12. Bb2 {[%clk 0:02:56]} 12... Qd7
{[%clk 0:02:57.9]} 13. Qc2 {[%clk 0:02:54.7]} 13... Bxh3 {[%clk 0:02:50.3]} 14.
Rfe1 {[%clk 0:02:11.8]} 14... Bg4 {[%clk 0:02:48.4]} 15. Nd2 {[%clk 0:02:10.7]}
15... Bh5 {[%clk 0:02:36.5]} 16. Ne4 {[%clk 0:02:08.1]} 16... Bg6 {[%clk
0:02:26.2]} 17. Re2 {[%clk 0:02:05.7]} 17... Ne6 {[%clk 0:02:16.6]} 18. Nxd6
{[%clk 0:01:34.1]} 18... Qxd6 {[%clk 0:02:15.4]} 19. Rae1 {[%clk 0:01:28.5]}
19... Qd7 {[%clk 0:02:07.5]} 20. Bf5 {[%clk 0:01:22.4]} 20... Qd6 {[%clk
0:01:49.3]} 21. Qe4 {[%clk 0:01:17.8]} 21... Bxf5 {[%clk 0:01:37.3]} 22. Qxf5
{[%clk 0:01:18]} 22... Qf8 {[%clk 0:00:41.6]} 23. d5 {[%clk 0:01:11.9]} 23...
cxd5 {[%clk 0:00:40.7]} 24. cxd5 {[%clk 0:01:12.1]} 24... Nc5 {[%clk 0:00:39.6]}
25. Ba3 {[%clk 0:00:44.9]} 25... Rxe2 {[%clk 0:00:37.1]} 26. Rxe2 {[%clk
0:00:45.4]} 26... Qd6 {[%clk 0:00:31.1]} 27. Bxc5 {[%clk 0:00:37.5]} 27... Qxc5
{[%clk 0:00:29.4]} 28. Qd7 {[%clk 0:00:38.1]} 28... Qc1+ {[%clk 0:00:22.9]} 29.
Kh2 {[%clk 0:00:38.1]} 29... Qh6+ {[%clk 0:00:23.1]} 30. Kg3 {[%clk 0:00:37.1]}
30... Qg5+ {[%clk 0:00:22.9]} 31. Kf3 {[%clk 0:00:35.2]} 31... Qh5+ {[%clk
0:00:20.8]} 32. Ke3 {[%clk 0:00:30.9]} 32... Qg5+ {[%clk 0:00:13.9]} 33. Kd3
{[%clk 0:00:28.4]} 33... h5 {[%clk 0:00:12.9]} 34. d6 {[%clk 0:00:24.9]} 34...
Qd5+ {[%clk 0:00:11.1]} 35. Kc2 {[%clk 0:00:23.6]} 35... Qc5+ {[%clk 0:00:10.4]}
36. Kb1 {[%clk 0:00:21.9]} 36... Rc8 {[%clk 0:00:08.4]} 37. Re8+ {[%clk
0:00:20.4]} 37... Rxe8 {[%clk 0:00:08.8]} 38. Qxe8+ {[%clk 0:00:21.3]} 38... Kh7
{[%clk 0:00:08.9]} 39. d7 {[%clk 0:00:19.6]} 39... Qf5+ {[%clk 0:00:07.9]} 40.
Kc1 {[%clk 0:00:19.5]} 40... Qf4+ {[%clk 0:00:06.4]} 41. Kd1 {[%clk 0:00:19.5]}
41... Qd4+ {[%clk 0:00:05.5]} 42. Ke2 {[%clk 0:00:18.4]} 42... Qb2+ {[%clk
0:00:05.2]} 43. Kf3 {[%clk 0:00:17.9]} 43... Qc3+ {[%clk 0:00:03.7]} 44. Ke2
{[%clk 0:00:15.9]} 44... Qb2+ {[%clk 0:00:02.9]} 45. Kd3 {[%clk 0:00:16.5]}
45... Qb1+ {[%clk 0:00:02.3]} 46. Kc4 {[%clk 0:00:16.5]} 46... Qc2+ {[%clk
0:00:02.2]} 47. Kd5 {[%clk 0:00:16.7]} 47... Qd3+ {[%clk 0:00:02]} 48. Kc5
{[%clk 0:00:17]} 48... Qc3+ {[%clk 0:00:01.5]} 49. Kd6 {[%clk 0:00:17.5]} 1-0

[Event "Early-Titled-Tuesday-Blitz-September-12-2023"]
[Site "Chess.com"]
[Date "2023.09.12"]
[Round "1"]
[White "ploxoi"]
[Black "The_Machine04"]
[Result "0-1"]
[WhiteElo "2363"]
[BlackElo "2658"]
[TimeControl "180+1"]
[EndTime "8:07:36 PDT"]
[Termination "The_Machine04 won by checkmate"]

1. d4 {[%clk 0:03:00.9]} 1... d6 {[%clk 0:03:00.2]} 2. c4 {[%clk 0:03:01.5]}
2... e5 {[%clk 0:03:00]} 3. d5 {[%clk 0:02:49.9]} 3... f5 {[%clk 0:02:57.1]} 4.
Nc3 {[%clk 0:02:50.6]} 4... Nf6 {[%clk 0:02:55.2]} 5. e4 {[%clk 0:02:48.3]} 5...
Nxe4 {[%clk 0:02:50.1]} 6. Nxe4 {[%clk 0:02:47]} 6... fxe4 {[%clk 0:02:51]} 7.
Ne2 {[%clk 0:02:44.9]} 7... Bf5 {[%clk 0:02:44.6]} 8. Ng3 {[%clk 0:02:45.1]}
8... Bg6 {[%clk 0:02:44.9]} 9. h4 {[%clk 0:02:45.2]} 9... h6 {[%clk 0:02:42.8]}
10. Qg4 {[%clk 0:02:42.3]} 10... Bh7 {[%clk 0:02:26.6]} 11. Nxe4 {[%clk
0:02:41.1]} 11... Nd7 {[%clk 0:02:20.6]} 12. Bd3 {[%clk 0:02:36.5]} 12... Nf6
{[%clk 0:02:06.1]} 13. Qe6+ {[%clk 0:02:21.2]} 13... Qe7 {[%clk 0:01:56.7]} 14.
Nxf6+ {[%clk 0:02:18]} 14... gxf6 {[%clk 0:01:57.6]} 15. Qxe7+ {[%clk
0:02:17.5]} 15... Bxe7 {[%clk 0:01:50.9]} 16. Bxh7 {[%clk 0:02:17.3]} 16... Rxh7
{[%clk 0:01:51.8]} 17. g4 {[%clk 0:02:15.1]} 17... h5 {[%clk 0:01:49.1]} 18. f3
{[%clk 0:01:57]} 18... Kf7 {[%clk 0:01:47.6]} 19. Kf2 {[%clk 0:01:44.8]} 19...
Rg8 {[%clk 0:01:24.5]} 20. Kg3 {[%clk 0:01:43.6]} 20... hxg4 {[%clk 0:01:21.3]}
21. fxg4 {[%clk 0:01:44.5]} 21... f5 {[%clk 0:01:21.6]} 22. g5 {[%clk
0:01:44.9]} 22... f4+ {[%clk 0:01:22]} 23. Bxf4 {[%clk 0:01:20.8]} 23... exf4+
{[%clk 0:01:18.4]} 24. Kxf4 {[%clk 0:01:21.7]} 24... Rgh8 {[%clk 0:00:50.7]} 25.
Kg4 {[%clk 0:01:11.4]} 25... Kg6 {[%clk 0:00:48.7]} 26. Rae1 {[%clk 0:00:35.2]}
26... Bxg5 {[%clk 0:00:38.5]} 27. Re6+ {[%clk 0:00:35.7]} 27... Bf6 {[%clk
0:00:37.4]} 28. h5+ {[%clk 0:00:34.9]} 28... Rxh5 {[%clk 0:00:33.7]} 29. Rxh5
{[%clk 0:00:34.3]} 29... Rxh5 {[%clk 0:00:34.6]} 30. Rxf6+ {[%clk 0:00:34.8]}
30... Kxf6 {[%clk 0:00:35.5]} 31. Kxh5 {[%clk 0:00:35.3]} 31... Ke5 {[%clk
0:00:35.9]} 32. Kg6 {[%clk 0:00:35.7]} 32... Kd4 {[%clk 0:00:36.1]} 33. b3
{[%clk 0:00:36.2]} 33... c6 {[%clk 0:00:11.3]} 34. Kf5 {[%clk 0:00:20.8]} 34...
cxd5 {[%clk 0:00:11]} 35. Ke6 {[%clk 0:00:21.5]} 35... dxc4 {[%clk 0:00:10.6]}
36. bxc4 {[%clk 0:00:22.4]} 36... Kxc4 {[%clk 0:00:11.5]} 37. Kxd6 {[%clk
0:00:22.9]} 37... a5 {[%clk 0:00:05]} 38. Kc7 {[%clk 0:00:20.9]} 38... b5 {[%clk
0:00:02.9]} 39. Kb6 {[%clk 0:00:21.4]} 39... a4 {[%clk 0:00:03.1]} 40. Ka5
{[%clk 0:00:21.8]} 40... Kc5 {[%clk 0:00:03.3]} 41. a3 {[%clk 0:00:19.1]} 41...
Kc4 {[%clk 0:00:03.8]} 42. Ka6 {[%clk 0:00:16]} 42... b4 {[%clk 0:00:04.7]} 43.
Ka5 {[%clk 0:00:16.1]} 43... bxa3 {[%clk 0:00:04.7]} 44. Kxa4 {[%clk 0:00:16.8]}
44... a2 {[%clk 0:00:05.6]} 45. Ka5 {[%clk 0:00:17.7]} 45... a1=Q+ {[%clk
0:00:06.5]} 46. Kb6 {[%clk 0:00:18.6]} 46... Qb2+ {[%clk 0:00:06.8]} 47. Kc6
{[%clk 0:00:19.5]} 47... Qd4 {[%clk 0:00:07.7]} 48. Kb7 {[%clk 0:00:19.5]} 48...
Qd5+ {[%clk 0:00:08.6]} 49. Kc8 {[%clk 0:00:20.1]} 49... Qf7 {[%clk 0:00:08.5]}
50. Kb8 {[%clk 0:00:20.1]} 50... Kc5 {[%clk 0:00:09.4]} 51. Kc8 {[%clk
0:00:20.8]} 51... Kb6 {[%clk 0:00:10.3]} 52. Kd8 {[%clk 0:00:21.7]} 52... Kc6
{[%clk 0:00:10.7]} 53. Kc8 {[%clk 0:00:22.2]} 53... Qf8# {[%clk 0:00:11.6]} 0-1

[Event "Early-Titled-Tuesday-Blitz-September-12-2023"]
[Site "Chess.com"]
[Date "2023.09.12"]
[Round "1"]
[White "Aradhya2000"]
[Black "Rakitic2010"]
[Result "1/2-1/2"]
[WhiteElo "2692"]
[BlackElo "2401"]
[TimeControl "180+1"]
[EndTime "8:07:39 PDT"]
[Termination "Game drawn - insufficient material"]

1. d4 {[%clk 0:03:00.9]} 1... Nf6 {[%clk 0:02:59.1]} 2. c4 {[%clk 0:03:01]} 2...
e6 {[%clk 0:02:55.9]} 3. Bg5 {[%clk 0:03:00.4]} 3... h6 {[%clk 0:02:50.2]} 4.
Bh4 {[%clk 0:02:59.8]} 4... Bb4+ {[%clk 0:02:45.4]} 5. Nd2 {[%clk 0:02:57.5]}
5... g5 {[%clk 0:02:00.9]} 6. Bg3 {[%clk 0:02:57]} 6... Ne4 {[%clk 0:02:01.4]}
7. Nf3 {[%clk 0:02:57.6]} 7... f5 {[%clk 0:01:55.5]} 8. e3 {[%clk 0:02:50.6]}
8... b6 {[%clk 0:01:49.3]} 9. a3 {[%clk 0:02:49]} 9... Bxd2+ {[%clk 0:01:45.1]}
10. Nxd2 {[%clk 0:02:49.9]} 10... Nf6 {[%clk 0:01:38.1]} 11. h4 {[%clk 0:02:48]}
11... g4 {[%clk 0:01:33.2]} 12. h5 {[%clk 0:02:47.9]} 12... Bb7 {[%clk
0:01:30.5]} 13. Qc2 {[%clk 0:02:29.8]} 13... d6 {[%clk 0:01:26]} 14. O-O-O
{[%clk 0:02:29.7]} 14... Nbd7 {[%clk 0:01:24.1]} 15. f3 {[%clk 0:02:29.9]} 15...
gxf3 {[%clk 0:01:23.3]} 16. gxf3 {[%clk 0:02:29.9]} 16... Qe7 {[%clk 0:01:24]}
17. Bd3 {[%clk 0:02:24.5]} 17... O-O-O {[%clk 0:01:23.8]} 18. e4 {[%clk
0:02:17]} 18... fxe4 {[%clk 0:01:23.6]} 19. Nxe4 {[%clk 0:02:16.7]} 19... e5
{[%clk 0:01:23]} 20. Nxf6 {[%clk 0:02:13.9]} 20... Qxf6 {[%clk 0:01:19.9]} 21.
Bh4 {[%clk 0:02:05.4]} 21... Qf4+ {[%clk 0:01:20]} 22. Kb1 {[%clk 0:02:06.1]}
22... Bxf3 {[%clk 0:01:09.8]} 23. Rdf1 {[%clk 0:02:01.4]} 23... Rdf8 {[%clk
0:01:09.9]} 24. c5 {[%clk 0:01:46.1]} 24... dxc5 {[%clk 0:01:04.2]} 25. d5
{[%clk 0:01:35.5]} 25... Qd4 {[%clk 0:00:58]} 26. Rh2 {[%clk 0:01:23.8]} 26...
Bxd5 {[%clk 0:00:55.7]} 27. Re1 {[%clk 0:01:16.4]} 27... e4 {[%clk 0:00:54.5]}
28. Bxe4 {[%clk 0:01:15.8]} 28... Bxe4 {[%clk 0:00:52.8]} 29. Rxe4 {[%clk
0:01:10.9]} 29... Rf1+ {[%clk 0:00:51.9]} 30. Ka2 {[%clk 0:01:10.9]} 30... Qd5+
{[%clk 0:00:52.6]} 31. b3 {[%clk 0:01:11.4]} 31... Rhf8 {[%clk 0:00:49.4]} 32.
Rd2 {[%clk 0:01:10.8]} 32... Qc6 {[%clk 0:00:37.6]} 33. Re7 {[%clk 0:01:06.8]}
33... Nf6 {[%clk 0:00:33.6]} 34. Qc4 {[%clk 0:00:56.4]} 34... b5 {[%clk
0:00:32.1]} 35. Qe6+ {[%clk 0:00:56]} 35... Qxe6 {[%clk 0:00:32.3]} 36. Rxe6
{[%clk 0:00:56.9]} 36... Nxh5 {[%clk 0:00:26.6]} 37. Rxh6 {[%clk 0:00:56.8]}
37... Nf4 {[%clk 0:00:22.8]} 38. Rc6 {[%clk 0:00:56.5]} 38... Kb7 {[%clk
0:00:21.3]} 39. Rxc5 {[%clk 0:00:56.6]} 39... a6 {[%clk 0:00:21.5]} 40. Bg3
{[%clk 0:00:32.2]} 40... Ne6 {[%clk 0:00:21.5]} 41. Re5 {[%clk 0:00:31.5]} 41...
R1f6 {[%clk 0:00:19.3]} 42. a4 {[%clk 0:00:28.3]} 42... Rd8 {[%clk 0:00:19.1]}
43. Rxd8 {[%clk 0:00:27.1]} 43... Nxd8 {[%clk 0:00:20]} 44. axb5 {[%clk
0:00:27.1]} 44... axb5 {[%clk 0:00:20.5]} 45. Rxb5+ {[%clk 0:00:27.1]} 45... Kc6
{[%clk 0:00:21.4]} 46. Re5 {[%clk 0:00:26.8]} 46... Ne6 {[%clk 0:00:21.1]} 47.
Re4 {[%clk 0:00:21.9]} 47... Nc5 {[%clk 0:00:20.7]} 48. Rc4 {[%clk 0:00:21.6]}
48... Kb5 {[%clk 0:00:20.3]} 49. Bxc7 {[%clk 0:00:19.8]} 49... Rf2+ {[%clk
0:00:19]} 50. Ka3 {[%clk 0:00:18.9]} 50... Rf3 {[%clk 0:00:19.1]} 51. Rb4+
{[%clk 0:00:16.7]} 51... Kc6 {[%clk 0:00:19.6]} 52. Ba5 {[%clk 0:00:16.6]} 52...
Rxb3+ {[%clk 0:00:19.2]} 53. Rxb3 {[%clk 0:00:16.9]} 53... Nxb3 {[%clk
0:00:19.8]} 1/2-1/2

[Event "Early-Titled-Tuesday-Blitz-September-12-2023"]
[Site "Chess.com"]
[Date "2023.09.12"]
[Round "1"]
[White "YairParkhov"]
[Black "NowInChess"]
[Result "1-0"]
[WhiteElo "2590"]
[BlackElo "2274"]
[TimeControl "180+1"]
[EndTime "8:07:39 PDT"]
[Termination "YairParkhov won on time"]

1. e4 {[%clk 0:02:58.7]} 1... e6 {[%clk 0:03:00.1]} 2. d3 {[%clk 0:02:54.1]}
2... d5 {[%clk 0:03:01]} 3. Nd2 {[%clk 0:02:54.6]} 3... Nf6 {[%clk 0:03:00.9]}
4. Ngf3 {[%clk 0:02:55.2]} 4... Nc6 {[%clk 0:02:52.2]} 5. g3 {[%clk 0:02:54.6]}
5... dxe4 {[%clk 0:02:51.7]} 6. dxe4 {[%clk 0:02:54.5]} 6... e5 {[%clk 0:02:52]}
7. Bg2 {[%clk 0:02:54.7]} 7... Bc5 {[%clk 0:02:52.4]} 8. O-O {[%clk 0:02:54.9]}
8... O-O {[%clk 0:02:51.4]} 9. c3 {[%clk 0:02:52.7]} 9... a5 {[%clk 0:02:51.3]}
10. Qe2 {[%clk 0:02:49]} 10... Qe7 {[%clk 0:02:43.8]} 11. a4 {[%clk 0:02:45.8]}
11... b6 {[%clk 0:02:41.8]} 12. b3 {[%clk 0:02:25.3]} 12... Ba6 {[%clk
0:02:40.6]} 13. Nc4 {[%clk 0:02:25.5]} 13... Ne8 {[%clk 0:02:40.2]} 14. Bg5
{[%clk 0:02:13.5]} 14... f6 {[%clk 0:02:38]} 15. Be3 {[%clk 0:02:13.6]} 15...
Bxe3 {[%clk 0:02:36.6]} 16. Qxe3 {[%clk 0:02:14.5]} 16... Bxc4 {[%clk
0:02:29.9]} 17. bxc4 {[%clk 0:02:15]} 17... Nd8 {[%clk 0:02:22.2]} 18. Nh4
{[%clk 0:02:12.6]} 18... Ne6 {[%clk 0:02:16.5]} 19. Rad1 {[%clk 0:02:06.9]}
19... Nd6 {[%clk 0:02:11.8]} 20. Qe2 {[%clk 0:02:03.3]} 20... Nc5 {[%clk
0:02:08.9]} 21. Nf5 {[%clk 0:02:01.5]} 21... Qe6 {[%clk 0:01:45.1]} 22. h4
{[%clk 0:01:46.2]} 22... g6 {[%clk 0:01:37]} 23. Nxd6 {[%clk 0:01:30.3]} 23...
cxd6 {[%clk 0:01:37.9]} 24. Ra1 {[%clk 0:01:21.2]} 24... Rfd8 {[%clk 0:01:22.9]}
25. Rfd1 {[%clk 0:01:18.1]} 25... Qe8 {[%clk 0:01:18.1]} 26. Qc2 {[%clk
0:00:57]} 26... Qe6 {[%clk 0:01:14]} 27. Bf1 {[%clk 0:00:54.4]} 27... Qg4 {[%clk
0:01:04.1]} 28. Bg2 {[%clk 0:00:51.5]} 28... Qe6 {[%clk 0:00:59.8]} 29. Rd5
{[%clk 0:00:51.2]} 29... Kg7 {[%clk 0:00:54.7]} 30. Rad1 {[%clk 0:00:50.5]}
30... Ra7 {[%clk 0:00:46.6]} 31. R1d2 {[%clk 0:00:43.6]} 31... Rad7 {[%clk
0:00:39]} 32. h5 {[%clk 0:00:41.4]} 32... f5 {[%clk 0:00:16.5]} 33. Bh3 {[%clk
0:00:27]} 33... Kf6 {[%clk 0:00:10.2]} 34. exf5 {[%clk 0:00:20.7]} 34... gxf5
{[%clk 0:00:09.2]} 35. f4 {[%clk 0:00:18.6]} 35... e4 {[%clk 0:00:06.9]} 36.
Rxf5+ {[%clk 0:00:17.9]} 36... Qxf5 {[%clk 0:00:05.8]} 37. Bxf5 {[%clk
0:00:17.9]} 37... Kxf5 {[%clk 0:00:06.7]} 38. Rd5+ {[%clk 0:00:18.4]} 38... Kf6
{[%clk 0:00:03.9]} 39. Qd1 {[%clk 0:00:19]} 39... Rg8 {[%clk 0:00:02.7]} 40.
Qd4+ {[%clk 0:00:16.2]} 40... Ke7 {[%clk 0:00:02]} 41. Rg5 {[%clk 0:00:16.1]}
41... Rxg5 {[%clk 0:00:01.5]} 42. fxg5 {[%clk 0:00:17]} 42... Ne6 {[%clk
0:00:01.9]} 43. Qf6+ {[%clk 0:00:17.3]} 43... Ke8 {[%clk 0:00:01.6]} 44. Qxe6+
{[%clk 0:00:17.8]} 44... Kd8 {[%clk 0:00:02.1]} 45. Qxe4 {[%clk 0:00:17.3]}
45... Kc7 {[%clk 0:00:02.4]} 46. g6 {[%clk 0:00:17.2]} 46... hxg6 {[%clk
0:00:02]} 47. Qxg6 {[%clk 0:00:18.1]} 47... Re7 {[%clk 0:00:01.7]} 48. h6 {[%clk
0:00:18.4]} 1-0